Workbook

Sheet Summary
F1: The Paragon Mortgages (2010) Limited originated mortgages transitioned to a term SONIA basis on 1st July 2021. Please see the below link for further details.
F2: libor-mortgages-transition-july-19 (paragonbankinggroup.co.uk)
A3: Paragon Mortgages (No.28) PLC
A5: Information as at the Principal Determination Date | B5: 2020-11-30 | C5: 2021-02-26 | D5: 2021-05-28 | E5: 2021-08-31 | F5: 2021-11-30 | G5: 2022-02-28 | H5: 2022-05-31 | I5: 2022-08-31 | J5: 2022-11-30 | K5: 2023-02-28 | L5: 2023-05-31 | M5: 2023-08-31 | N5: 2023-11-30 | O5: 2024-02-29
A6: Mortgage Asset Balance | B6: 719034.2036 | C6: 712617.971 | D6: 710761.2691 | E6: 705795.0471 | F6: 702339.5392 | G6: 695049.1523 | H6: 677190.637 | I6: 657932.7614 | J6: 634374.9837 | K6: 626817.8483 | L6: 621769.3387 | M6: 618624.2295 | N6: 615460.6531 | O6: 612829.8916
A7: Mandatory Further Advance Prefunding Reserve | B7: 985 | C7: 854 | D7: 706 | E7: 651 | F7: 612 | G7: 604 | H7: 584 | I7: 579 | J7: 284 | K7: 0 | L7: 0 | M7: 0 | N7: 0 | O7: 0
A8: Available Principal Cash | B8: 4 | C8: 1 | D8: 4 | E8: 3 | F8: 4 | G8: 4 | H8: 4 | I8: 3 | J8: 2 | K8: 1 | L8: 2 | M8: 4 | N8: 5 | O8: 4
A9: Total Assets | B9: =+B6+B7+B8 -> 720023.2036 | C9: 713472.971 | D9: 711471.2691 | E9: 706449.0471 | F9: 702955.5392 | G9: 695657.1523 | H9: =+H6+H7+H8 -> 677778.637 | I9: 658514.7614 | J9: =+J6+J7+J8 -> 634660.9837 | K9: 626818.8483 | L9: =+L6+L7+L8 -> 621771.3387 | M9: =+M6+M7+M8 -> 618628.2295 | N9: =+N6+N7+N8 -> 615465.6531 | O9: =+O6+O7+O8 -> 612833.8916
A10: Total Notes (Class A, B, C, D and Z Notes) | B10: =SUM(B11:B15) -> 720023 | C10: 713473 | D10: 711471 | E10: 706449 | F10: 702956 | G10: 695657 | H10: =SUM(H11:H15) -> 677779 | I10: 658515 | J10: =SUM(J11:J15) -> 634661 | K10: 626819 | L10: =SUM(L11:L15)-2 -> 621771 | M10: =SUM(M11:M15)-1 -> 618628 | N10: =SUM(N11:N15) -> 615466 | O10: =SUM(O11:O15) -> 612834
A11: Class A Notes | B11: 622664 | C11: 616114 | D11: 614112 | E11: 609090 | F11: 605597 | G11: 598298 | H11: 580420 | I11: 561156 | J11: 537302 | K11: 529460 | L11: 524414 | M11: 521270 | N11: 518107 | O11: 515475
A12: Class B Notes | B12: 39664 | C12: 39664 | D12: 39664 | E12: 39664 | F12: 39664 | G12: 39664 | H12: 39664 | I12: 39664 | J12: 39664 | K12: 39664 | L12: 39664 | M12: 39664 | N12: 39664 | O12: 39664
A13: Class C Notes | B13: 21635 | C13: 21635 | D13: 21635 | E13: 21635 | F13: 21635 | G13: 21635 | H13: 21635 | I13: 21635 | J13: 21635 | K13: 21635 | L13: 21635 | M13: 21635 | N13: 21635 | O13: 21635
A14: Class D Notes | B14: 18029 | C14: 18029 | D14: 18029 | E14: 18029 | F14: 18029 | G14: 18029 | H14: 18029 | I14: 18029 | J14: 18029 | K14: 18029 | L14: 18029 | M14: 18029 | N14: 18029 | O14: 18029
A15: Class Z Notes | B15: 18031 | C15: 18031 | D15: 18031 | E15: 18031 | F15: 18031 | G15: 18031 | H15: 18031 | I15: 18031 | J15: 18031 | K15: 18031 | L15: 18031 | M15: 18031 | N15: 18031 | O15: 18031
A16: Class A and B Liquidity Reserve Fund (1.50% of the outstanding Class A and B Notes) | B16: =SUM(623812+39664)*1.5% -> 9952.14 | C16: =SUM(B11+B12)*1.5% -> 9934.92 | D16: 9836.67 | E16: 9806.64 | F16: 9731.31 | G16: 9678.915 | H16: 9569.43 | I16: 9301.26 | J16: 9012.3 | K16: 8654.49 | L16: 8536.86 | M16: 8461.17 | N16: 8414.01 | O16: 8366.565
A17: General Reserve Fund (1.50% of the outstanding Class C and D Notes) | B17: =SUM(B13:B14)*1.5% -> 594.96 | C17: =SUM(B13:B14)*1.5% -> 594.96 | D17: 594.96 | E17: 594.96 | F17: 594.96 | G17: 594.96 | H17: 594.96 | I17: 594.96 | J17: 594.96 | K17: 594.96 | L17: 594.96 | M17: 594.96 | N17: 594.96 | O17: 594.96
A18: Class B, C , D and Z Notes as a % of the Total Notes | B18: =SUM(B12:B15)/B10 -> 0.1352165139 | C18: 0.1364578618 | D18: 0.136841839 | E18: 0.1378146193 | F18: 0.1384994224 | G18: 0.1399525916 | H18: =SUM(H12:H15)/H10 -> 0.1436441672 | I18: 0.1478462905 | J18: =SUM(J12:J15)/J10 -> 0.1534031554 | K18: 0.1553223498 | L18: =SUM(L12:L15)/L10 -> 0.1565833723 | M18: 0.1573789095 | N18: =SUM(N12:N15)/N10 -> 0.1581874547 | O18: 0.1588668383
A19: Retained Notes held by Paragon Bank PLC (Class A, B, C, D and Z Notes) | B19: =B10 -> 720023 | C19: 713473 | D19: 711471 | E19: 706449 | F19: 702956 | G19: 695657 | H19: =H10 -> 677779 | I19: 658515 | J19: =J10 -> 634661 | K19: 626819 | L19: =L10 -> 621771 | M19: 618628 | N19: =N10 -> 615466 | O19: 612834
A20: Lifetime Redemption Rate | B20: 0.0176 | C20: 0.0311 | D20: 0.0227 | E20: 0.0243 | F20: 0.0232 | G20: 0.0265 | H20: 0.0382 | I20: 0.0481 | J20: 0.0591 | K20: 0.0577 | L20: 0.0553 | M20: 0.0523 | N20: 0.0497 | O20: 0.0473
A21: Quarterly Redemption Rate | B21: 0.0016 | C21: 0.0091 | D21: 0.0028 | E21: 0.0071 | F21: 0.0049 | G21: 0.0103 | H21: 0.0257 | I21: 0.0284 | J21: 0.0358 | K21: 0.0119 | L21: 0.0081 | M21: 0.0051 | N21: 0.0051 | O21: 0.0043
A22: PM2010 Lifetime Redemption Rate | B22: 0.0088 | C22: 0.0279 | D22: 0.0267 | E22: 0.0202 | F22: 0.0239 | G22: 0.0204 | H22: 0.0593 | I22: 0.0717 | J22: 0.0744 | K22: 0.07 | L22: 0.0709 | M22: 0.0652 | N22: 0.0667 | O22: 0.065
A23: Paragon Bank Lifetime Redemption Rate | B23: 0.0176 | C23: 0.0311 | D23: 0.0225 | E23: 0.0243 | F23: 0.0231 | G23: 0.0266 | H23: 0.0377 | I23: 0.0476 | J23: 0.0587 | K23: 0.0575 | L23: 0.055 | M23: 0.052 | N23: 0.0493 | O23: 0.0469
A24: Further Advances released in the quarter | B24: 0 | C24: 0 | D24: 0 | E24: 0 | F24: 0 | G24: 0 | H24: 0 | I24: 0 | J24: 0 | K24: 0 | L24: 0 | M24: 0 | N24: 0 | O24: 0
A25: Opening PDL Balance | B25: 0 | C25: 0 | D25: 0 | E25: 0 | F25: 0 | G25: 0 | H25: 0 | I25: 0 | J25: 0 | K25: 0 | L25: 0 | M25: 0 | N25: 0 | O25: 0
A26: Quarterly Losses | B26: =+B99+B130+B161+B192 -> 1 | C26: 0 | D26: 0 | E26: 1 | F26: 0 | G26: 2 | H26: =+H99+H130+H161+H192 -> 6 | I26: 3 | J26: =+J99+J130+J161+J192 -> 1 | K26: 0 | L26: =+L99+L130+L161+L192 -> 0 | M26: 0 | N26: =+N99+N130+N161+N192 -> 0 | O26: 0
A27: Quarterly Loss Rate (annualised) | B27: =1-(1-B26/B6)^4 -> 5.563006093e-06 | C27: 0 | D27: 0 | E27: 5.667355581e-06 | F27: 0 | G27: 1.150992767e-05 | H27: =1-(1-H26/H6)^4 -> 3.544006625e-05 | I27: 1.823882109e-05 | J27: =1-(1-J26/J6)^4 -> 6.305403971e-06 | K27: 0 | L27: =1-(1-L26/L6)^4 -> 0 | M27: 0 | N27: =1-(1-N26/N6)^4 -> 0 | O27: 0
A28: PDL Replenishment made during the quarter (-ve = recoveries) | B28: 1 | C28: 0 | D28: 0 | E28: 1 | F28: 0 | G28: 2 | H28: 6 | I28: 3 | J28: 1 | K28: 0 | L28: 0 | M28: 0 | N28: 0 | O28: 0
A29: Outstanding PDL at end of the quarter | B29: =B25+B26-B28 -> 0 | C29: 0 | D29: 0 | E29: 0 | F29: 0 | G29: 0 | H29: =H25+H26-H28 -> 0 | I29: 0 | J29: =J25+J26-J28 -> 0 | K29: 0 | L29: =L25+L26-L28 -> 0 | M29: 0 | N29: =N25+N26-N28 -> 0 | O29: 0
A30: Spread Trap repayment in the quarter | B30: N/A | C30: N/A | D30: N/A | E30: N/A | F30: N/A | G30: N/A | H30: N/A | I30: N/A | J30: N/A | K30: N/A | L30: N/A | M30: N/A | N30: N/A | O30: N/A
A31: Spread % (WA Funding Rate less WA Interest Rate) | B31: 0.0233 | C31: 0.0233 | D31: 0.0233 | E31: 0.0233 | F31: 0.02328911067 | G31: 0.021 | H31: 0.01686624688 | I31: 0.0113695709 | J31: 0.001952485233 | K31: 0 | L31: 0 | M31: 0 | N31: 0 | O31: 0
A32: Total Income as a % of the Assets | B32: 0.0017 | C32: 0.0089 | D32: 0.0089 | E32: 0.009 | F32: 0.009 | G32: 0.0099 | H32: 0.011 | I32: 0.0136 | J32: 0.018 | K32: 0.023 | L32: 0.02356820709 | M32: 0.02512178921 | N32: 0.02510878913 | O32: 0.0244
A33: Quarterly surplus income to the Issuer | B33: 347 | C33: 4053 | D33: 3940 | E33: 3991 | F33: 3322 | G33: 2747 | H33: 2152 | I33: 2179 | J33: 3261 | K33: 4414 | L33: 4015 | M33: 3759 | N33: 3463 | O33: 3001
A34: Surplus Income as a % of the Assets | B34: =+B33/721171 -> 0.0004811618881 | C34: =+C33/B9 -> 0.00562898526 | D34: 0.005522283478 | E34: 0.005609502693 | F34: 0.004702391508 | G34: 0.003907786264 | H34: 0.003093477862 | I34: 0.003214913957 | J34: 0.004952053 | K34: 0.006954894208 | L34: =+L33/K9 -> 0.006405359397 | M34: 0.006045630871 | N34: 0.005597869342 | O34: 0.0048759829
A35: COVID19 Payment holidays as % of mortgages | B35: 0.006606888179 | C35: 0.004977229826 | D35: 0.001700588584 | E35: 0 | F35: 0 | G35: 0 | H35: 0 | I35: 0 | J35: 0 | K35: 0 | L35: 0 | M35: 0 | N35: 0 | O35: 0
A36: Losses as a % of the Assets | B36: =+B26/721171 -> 1.386633683e-06 | C36: =+C26/B9 -> 0 | D36: 0 | E36: 1.405538134e-06 | F36: 0 | G36: 2.845130152e-06 | H36: 8.624938276e-06 | I36: 4.426223897e-06 | J36: 1.518568844e-06 | K36: 0 | L36: 0 | M36: 0 | N36: 0 | O36: 0
A37: Number of Properties in Possession | B37: =+B97+B128+B159 -> 0 | C37: 0 | D37: 0 | E37: 0 | F37: 0 | G37: 0 | H37: 0 | I37: 0 | J37: 0 | K37: 0 | L37: 0 | M37: 0 | N37: 0 | O37: 0
A38: Appointment of a Receiver of Rent | B38: 0 | C38: 0 | D38: 0 | E38: 0 | F38: 0 | G38: 0 | H38: 0 | I38: 0 | J38: 0 | K38: 0 | L38: 0 | M38: 1 | N38: =+N98+N129+N160+N191 -> 1 | O38: =+O98+O129+O160+O191 -> 0
A39: Average Number of months (Possessions) in Arrears at the Sale Date | B39: 0 | C39: 0 | D39: 0 | E39: 0 | F39: 0 | G39: 0 | H39: 0 | I39: 0 | J39: 0 | K39: 0 | L39: 0 | M39: 0 | N39: 0 | O39: 0
A40: Average Number of months (RoR) in Arrears at the Sale Date | B40: 0 | C40: 0 | D40: 0 | E40: 0 | F40: 0 | G40: 0 | H40: 0 | I40: 0 | J40: 0 | K40: 0 | L40: 0 | M40: 0 | N40: 0 | O40: 0
A41: Arrears excluding Receiver of Rent and Possession Cases
A42: Performing Loans | B42: 1 | C42: 1 | D42: 1 | E42: 1 | F42: 1 | G42: 1 | H42: 0.9989283198 | I42: 1 | J42: 1 | K42: 0.9990651987 | L42: 0.9993728671 | M42: 0.9983740272 | N42: 0.9974633751 | O42: 0.9982711775
A43: >1 to 2 months arrears | B43: 0 | C43: 0 | D43: 0 | E43: 0 | F43: 0 | G43: 0 | H43: 0.001071680204 | I43: 0 | J43: 0 | K43: 0.0005260249862 | L43: 0.0005168829983 | M43: 0.0007818137697 | N43: 0.001707910126 | O43: 0.0003296999751
A44: >2 to 3 months arrears | B44: 0 | C44: 0 | D44: 0 | E44: 0 | F44: 0 | G44: 0 | H44: 0 | I44: 0 | J44: 0 | K44: 0 | L44: 0.0001102498881 | M44: 0.0008441589944 | N44: 0.0002256399591 | O44: 0.0008746996309
A45: >3 months arrears | B45: 0 | C45: 0 | D45: 0 | E45: 0 | F45: 0 | G45: 0 | H45: 0 | I45: 0 | J45: 0 | K45: 0.0004087762828 | L45: 0 | M45: 0 | N45: 0.0006030748115 | O45: 0.0005244228527
A46: Total | B46: =SUM(B42:B45) -> 1 | C46: 1 | D46: 1 | E46: 1 | F46: 1 | G46: 1 | H46: 1 | I46: 1 | J46: 1 | K46: 1 | L46: 1 | M46: 1 | N46: 1 | O46: 1
A47: Total Value of Arrears (£000's) | B47: 4.262809827 | C47: 0.00082010718 | D47: 2.624759909 | E47: 1.524471038 | F47: 2.350738842 | G47: 2.883920058 | H47: 6.551720759 | I47: 4.343520122 | J47: 3.479059831 | K47: 12.80254995 | L47: 10.77469817 | M47: 29.05416804 | N47: 43.22412959 | O47: 31.7541781
A48: Total Value of Arrears as a % of the Notes (£721,171,000) | B48: =+B47/721171 -> 5.910955692e-06 | C48: 1.13718824e-09 | D48: 3.639580501e-06 | E48: 2.113882891e-06 | F48: 3.259613659e-06 | G48: 3.998940692e-06 | H48: =+H47/721171 -> 9.084836688e-06 | I48: 6.022871305e-06 | J48: =+J47/721171 -> 4.824181548e-06 | K48: 1.775244699e-05 | L48: =+L47/721171 -> 1.494055941e-05 | M48: 4.028748804e-05 | N48: =+N47/721171 -> 5.993603402e-05 | O48: 4.403141294e-05
A50: Underlying Assets | B50: =+B5 -> 2020-11-30 | C50: 2021-02-26 | D50: 2021-05-28 | E50: 2021-08-31 | F50: 2021-11-30 | G50: 2022-02-28 | H50: =+H5 -> 2022-05-31 | I50: 2022-08-31 | J50: =+J5 -> 2022-11-30 | K50: 2023-02-28 | L50: =+L5 -> 2023-05-31 | M50: 2023-08-31 | N50: =+N5 -> 2023-11-30 | O50: 2024-02-29
A51: Weighted Average LTV | B51: 0.7151118263 | C51: 0.7147467107 | D51: 0.7146760655 | E51: 0.7144723387 | F51: 0.7143223747 | G51: 0.7142190132 | H51: 0.7143766457 | I51: 0.7158095353 | J51: 0.7170710058 | K51: 0.7171211405 | L51: 0.7167550197 | M51: 0.716574394 | N51: 0.7160865449 | O51: 0.7157178999
A52: Weighted Average Nationwide Indexed LTV | B52: 0.6914825681 | C52: 0.6770224766 | D52: 0.6727006814 | E52: 0.6405332121 | F52: 0.6320077641 | G52: 0.6164772074 | H52: 0.6013834288 | I52: 0.5798896794 | J52: 0.5769824621 | K52: 0.5914811195 | L52: 0.6092437416 | M52: 0.6020821525 | N52: 0.6046653108 | O52: 0.609500139
A53: % of Fixed Rate Mortgages (reverting to Term SONIA plus a variable margin) - reverting to Libor linked prior to 1st July 2021 | B53: 0 | C53: 0 | D53: 0 | E53: 0 | F53: 0 | G53: 0 | H53: 0 | I53: 0 | J53: 0 | K53: 0 | L53: 0 | M53: 0 | N53: 0 | O53: 0
A54: % of Fixed Rate Mortgages (reverting to SVR) | B54: 1 | C54: 1 | D54: 1 | E54: 1 | F54: 1 | G54: 0.9997873244 | H54: 0.9779680629 | I54: 0.9754634298 | J54: 0.9684415502 | K54: 0.9753511959 | L54: 0.9814310009 | M54: 0.9828815484 | N54: 0.9844636543 | O54: 0.9849610928
A55: % of Term SONIA Linked Mortgages (reverting to Term SONIA plus a variable margin) - Libor linked prior to 1st July 2021 | B55: 0 | C55: 0 | D55: 0 | E55: 0 | F55: 0 | G55: 0 | H55: 0 | I55: 0 | J55: 0 | K55: 0 | L55: 0 | M55: 0 | N55: 0 | O55: 0
A56: % of Term SONIA Linked Mortgages plus a Variable Margin - Libor linked prior to 1st July 2021 | B56: 0 | C56: 0 | D56: 0 | E56: 0 | F56: 0 | G56: 0 | H56: 0 | I56: 0 | J56: 0 | K56: 0 | L56: 0 | M56: 0 | N56: 0 | O56: 0
A57: % of Non Reversionary Term SONIA Linked Mortgages - Libor linked prior to 1st July 2021 | B57: 0 | C57: 0 | D57: 0 | E57: 0 | F57: 0 | G57: 0 | H57: 0 | I57: 0 | J57: 0 | K57: 0 | L57: 0 | M57: 0 | N57: 0 | O57: 0
A58: % of SVR Mortgages | B58: 0 | C58: 0 | D58: 0 | E58: 0 | F58: 0 | G58: 0.0002126756065 | H58: 0.02203193713 | I58: 0.02453657022 | J58: 0.03155844977 | K58: 0.02464880412 | L58: 0.01856899908 | M58: 0.01711845161 | N58: 0.01553634566 | O58: 0.0150389072
A59: Weighted Average Loan Size | B59: 188031.957 | C59: 188772.9724 | D59: 188831.368 | E59: 188614.3899 | F59: 188699.5 | G59: 188615.7808 | H59: 189583.0451 | I59: 190263.9565 | J59: 191711.9927 | K59: 191511.7165 | L59: 191490.403 | M59: 191406.0116 | N59: 191493.6693 | O59: 191509.3411
A60: Weighted Average Interest Rate | B60: 0.03447215875 | C60: 0.03446503623 | D60: 0.03446664021 | E60: 0.03447160393 | F60: 0.03448054251 | G60: 0.03448753841 | H60: 0.03518166655 | I60: 0.03573445931 | J60: 0.03676770292 | K60: 0.03678104386 | L60: 0.03664229632 | M60: 0.03665324909 | N60: 0.03663276564 | O60: 0.0366114706
A61: Weighted Average Maturity Date (years) | B61: 21.23728808 | C61: 21.0433065 | D61: 20.7947863 | E61: 20.54286986 | F61: 20.2975086 | G61: 20.05003985 | H61: 19.81569846 | I61: 19.52219772 | J61: 19.22983166 | K61: 18.96561601 | L61: 18.7138137 | M61: 18.46298167 | N61: 18.21458537 | O61: 17.96769509
A62: Weighted Average Seasoning (months) | B62: 7.156296304 | C62: 10.08273763 | D62: 13.10095369 | E62: 16.13420689 | F62: 19.12006317 | G62: 22.09602208 | H62: 25.00621426 | I62: 28.00601128 | J62: 31.08455051 | K62: 34.06098558 | L62: 37.06655598 | M62: 40.09288942 | N62: 43.06323272 | O62: 46.04233479
A63: % of Interest Only Mortgages (optional switching to repayment) | B63: 0.9345410057 | C63: 0.9343528806 | D63: 0.9347230078 | E63: 0.9348361631 | F63: 0.9350190049 | G63: 0.937130898 | H63: 0.9365172023 | I63: 0.936130917 | J63: 0.9363970945 | K63: 0.9371375215 | L63: 0.9368330164 | M63: 0.9376007533 | N63: 0.9381837119 | O63: 0.9388136178
A64: % of Repayment Mortgages | B64: 0.06545899433 | C64: 0.06564711944 | D64: 0.0652769922 | E64: 0.06516383687 | F64: 0.06498099508 | G64: 0.06286910195 | H64: 0.06348279765 | I64: 0.06386908299 | J64: 0.06360290548 | K64: 0.06286247853 | L64: 0.06316698362 | M64: 0.06239924668 | N64: 0.06181628812 | O64: 0.06118638216
A65: % of Mortgages in London | B65: 0.1966087648 | C65: 0.1983401434 | D65: 0.1988742518 | E65: 0.1993579256 | F65: 0.1989543127 | G65: 0.1987524553 | H65: 0.2025796042 | I65: 0.2003885174 | J65: 0.2020594074 | K65: 0.2010621518 | L65: 0.2018328909 | M65: 0.2022863971 | N65: 0.2032613148 | O65: 0.2031695186
A66: % of Mortgages in the South East | B66: 0.3499695085 | C66: 0.3529914615 | D66: 0.3531328205 | E66: 0.3526695419 | F66: 0.3531670209 | G66: 0.3540727577 | H66: 0.3545360075 | I66: 0.3580291518 | J66: 0.3575005054 | K66: 0.3587279641 | L66: 0.3579501219 | M66: 0.3576072188 | N66: 0.3584774631 | O66: 0.3584431963
A67: % of Owner Occupied Mortgages | B67: 0 | C67: 0 | D67: 0 | E67: 0 | F67: 0 | G67: 0 | H67: 0 | I67: 0 | J67: 0 | K67: 0 | L67: 0 | M67: 0 | N67: 0 | O67: 0
A68: % of Investment Home Loans - Professional Landlords | B68: 0.7235778234 | C68: 0.7213302129 | D68: 0.722162197 | E68: 0.723062017 | F68: 0.7230142148 | G68: 0.724133541 | H68: 0.7287802782 | I68: 0.7278463538 | J68: 0.7310631035 | K68: 0.7327877199 | L68: 0.7344621301 | M68: 0.7347702675 | N68: 0.7351038896 | O68: 0.7344200523
A69: % of Investment Home Loans - Emerging Professional Landlords | B69: 0.2764221766 | C69: 0.2786697871 | D69: 0.277837803 | E69: 0.276937983 | F69: 0.2769857852 | G69: 0.275866459 | H69: 0.2712197218 | I69: 0.2721536462 | J69: 0.2689368965 | K69: 0.2672122801 | L69: 0.2655378699 | M69: 0.2652297325 | N69: 0.2648961104 | O69: 0.2655799477
A70: Weighted Average Interest Coverage Ratio (calculated at the origination date) | B70: 1.868290055 | C70: 1.870846327 | D70: 1.871052825 | E70: 1.871849589 | F70: 1.872115672 | G70: 1.872002281 | H70: 1.873149713 | I70: 1.876375122 | J70: 1.883845473 | K70: 1.887051445 | L70: 1.887845715 | M70: 1.887494519 | N70: 1.887569496 | O70: 1.886648357
A71: % of PM2010 Originated Assets (Professional) | B71: 0.01698127413 | C71: 0.01711176387 | D71: 0.0172959873 | E71: 0.01739476704 | F71: 0.0174571099 | G71: 0.01761652506 | H71: 0.01748001223 | I71: 0.01715136722 | J71: 0.01760258883 | K71: 0.01762873557 | L71: 0.01794433111 | M71: 0.01801400472 | N71: 0.01807872645 | O71: 0.01797779681
A72: % of PM2010 Originated Assets (Emerging Professional) | B72: 0.006384085093 | C72: 0.006256141694 | D72: 0.005986173551 | E72: 0.006023047523 | F72: 0.005859399451 | G72: 0.005915647874 | H72: 0.005048936803 | I72: 0.005132791872 | J72: 0.004944897593 | K72: 0.005005709663 | L72: 0.00440866043 | M72: 0.004429141083 | N72: 0.003987348367 | O72: 0.003938398458
A73: % of Paragon Bank Originated Assets (Professional) | B73: 0.7065965492 | C73: 0.704218449 | D73: 0.7048662097 | E73: 0.7056672499 | F73: 0.705557105 | G73: 0.706517016 | H73: 0.711300266 | I73: 0.7106949866 | J73: 0.7134605147 | K73: 0.7151589844 | L73: 0.716517799 | M73: 0.7167562628 | N73: 0.7170251632 | O73: 0.7164422555
A74: % of Paragon Bank Originated Assets (Emerging Professional) | B74: 0.2700380916 | C74: 0.2724136454 | D74: 0.2718516294 | E74: 0.2709149355 | F74: 0.2711263857 | G74: 0.2699508111 | H74: 0.266170785 | I74: 0.2670208543 | J74: 0.2639919989 | K74: 0.2622065704 | L74: 0.2611292095 | M74: 0.2608005914 | N74: 0.260908762 | O74: 0.2616415493
A76: Underlying Assets - Paragon Mortgages 2010 Originated Assets (Professional) | B76: =+B5 -> 2020-11-30 | C76: 2021-02-26 | D76: 2021-05-28 | E76: 2021-08-31 | F76: 2021-11-30 | G76: 2022-02-28 | H76: =+H5 -> 2022-05-31 | I76: 2022-08-31 | J76: =+J5 -> 2022-11-30 | K76: 2023-02-28 | L76: =+L5 -> 2023-05-31 | M76: 2023-08-31 | N76: =+N5 -> 2023-11-30 | O76: 2024-02-29
A77: Weighted Average LTV | B77: 0.7161839023 | C77: 0.7153615296 | D77: 0.7152500246 | E77: 0.7147465359 | F77: 0.7142850587 | G77: 0.7138434938 | H77: 0.7132034784 | I77: 0.7130550456 | J77: 0.7116037119 | K77: 0.7103392129 | L77: 0.7108440656 | M77: 0.7107500374 | N77: 0.7082592434 | O77: 0.7071390869
A78: Weighted Average Nationwide Indexed LTV | B78: 0.6099537967 | C78: 0.5958957165 | D78: 0.5917187574 | E78: 0.5629686202 | F78: 0.5549412015 | G78: 0.5419928924 | H78: 0.5276646454 | I78: 0.5088713201 | J78: 0.5062474925 | K78: 0.5186390193 | L78: 0.5345313424 | M78: 0.527940964 | N78: 0.5302787048 | O78: 0.5332781768
A79: % of Fixed Rate Mortgages (reverting to Term SONIA plus a variable margin) - reverting to Libor linked prior to 1st July 2021 | B79: 0 | C79: 0 | D79: 0 | E79: 0 | F79: 0 | G79: 0 | H79: 0 | I79: 0 | J79: 0 | K79: 0 | L79: 0 | M79: 0 | N79: 0 | O79: 0
A80: % of Fixed Rate Mortgages (reverting to SVR) | B80: 1 | C80: 1 | D80: 1 | E80: 1 | F80: 1 | G80: 1 | H80: 0.9052638861 | I80: 0.9693697867 | J80: 0.9781205487 | K80: 0.977889605 | L80: 0.9781021012 | M80: 0.9777470361 | N80: 0.9777127269 | O80: 0.9693179054
A81: % of Term SONIA Linked Mortgages (reverting to Term SONIA plus a variable margin) - Libor linked prior to 1st July 2021 | B81: 0 | C81: 0 | D81: 0 | E81: 0 | F81: 0 | G81: 0 | H81: 0 | I81: 0 | J81: 0 | K81: 0 | L81: 0 | M81: 0 | N81: 0 | O81: 0
A82: % of Term SONIA Linked Mortgages plus a Variable Margin - Libor linked prior to 1st July 2021 | B82: 0 | C82: 0 | D82: 0 | E82: 0 | F82: 0 | G82: 0 | H82: 0 | I82: 0 | J82: 0 | K82: 0 | L82: 0 | M82: 0 | N82: 0 | O82: 0
A83: % of Non Reversionary Term SONIA Linked Mortgages - Libor linked prior to 1st July 2021 | B83: 0 | C83: 0 | D83: 0 | E83: 0 | F83: 0 | G83: 0 | H83: 0 | I83: 0 | J83: 0 | K83: 0 | L83: 0 | M83: 0 | N83: 0 | O83: 0
A84: % of SVR Mortgages | B84: 0 | C84: 0 | D84: 0 | E84: 0 | F84: 0 | G84: 0 | H84: 0.09473611392 | I84: 0.03063021328 | J84: 0.02187945132 | K84: 0.02211039503 | L84: 0.02189789875 | M84: 0.02225296392 | N84: 0.02228727311 | O84: 0.03068209458
A85: Weighted Average Loan Size | B85: 158572.947 | C85: 158365.5903 | D85: 159653.479 | E85: 159443.3821 | F85: 159231.4094 | G85: 159017.543 | H85: 157830.6749 | I85: 156728.4222 | J85: 157276.6479 | K85: 157857.23 | L85: 157144.1534 | M85: 156956.3351 | N85: 156714.7154 | O85: 157390.4467
A86: Weighted Average Interest Rate | B86: 0.03740741389 | C86: 0.03742272444 | D86: 0.03740329388 | E86: 0.03740277665 | F86: 0.03740225315 | G86: 0.03735002494 | H86: 0.03878551817 | I86: 0.03703910666 | J86: 0.03704130151 | K86: 0.03734634621 | L86: 0.03763889215 | M86: 0.03696752574 | N86: 0.03702397552 | O86: 0.03749135918
A87: Weighted Average Maturity Date (years) | B87: 14.40921216 | C87: 14.15920643 | D87: 13.9713842 | E87: 13.72146144 | F87: 13.47153925 | G87: 13.22161765 | H87: 13.26072228 | I87: 12.78710245 | J87: 12.49035119 | K87: 12.19930753 | L87: 12.00868337 | M87: 11.75673775 | N87: 11.5072637 | O87: 11.21816452
A88: Weighted Average Seasoning (months) | B88: 68.76406139 | C88: 71.72179011 | D88: 74.80785677 | E88: 77.83137511 | F88: 80.82205105 | G88: 83.77988478 | H88: 86.89700369 | I88: 89.84825106 | J88: 92.88333179 | K88: 95.81926431 | L88: 98.77848489 | M88: 101.8028233 | N88: 104.793234 | O88: 107.7813678
A89: % of Interest Only Mortgages (optional switching to repayment) | B89: 0.9042731615 | C89: 0.9053846002 | D89: 0.9073801864 | E89: 0.9085037467 | F89: 0.9096409878 | G89: 0.9107921067 | H89: 0.9111582865 | I89: 0.9082011865 | J89: 0.9139323935 | K89: 0.9144206119 | L89: 0.9166389299 | M89: 0.917949395 | N89: 0.9192481254 | O89: 0.9199013102
A90: % of Repayment Mortgages | B90: 0.09572683846 | C90: 0.0946153998 | D90: 0.09261981355 | E90: 0.09149625333 | F90: 0.09035901218 | G90: 0.08920789325 | H90: 0.08884171348 | I90: 0.09179881345 | J90: 0.08606760654 | K90: 0.08557938805 | L90: 0.08336107012 | M90: 0.08205060502 | N90: 0.0807518746 | O90: 0.08009868982
A91: % of Mortgages in London | B91: 0.2158468758 | C91: 0.2159699129 | D91: 0.2140692509 | E91: 0.2141918378 | F91: 0.2143164631 | G91: 0.2144431559 | H91: 0.2197474233 | I91: 0.2305827666 | J91: 0.2328328167 | K91: 0.2350260811 | L91: 0.2325754612 | M91: 0.2329887776 | N91: 0.2331520601 | O91: 0.2352678835
A92: % of Mortgages in the South East | B92: 0.2995446853 | C92: 0.2998067053 | D92: 0.3135134849 | E92: 0.3137955198 | F92: 0.3140807527 | G92: 0.3143692279 | H92: 0.31558719 | I92: 0.2882331693 | J92: 0.2911228443 | K92: 0.2850694698 | L92: 0.2821756493 | M92: 0.2823575525 | N92: 0.2826354077 | O92: 0.2769241357
A93: % of Owner Occupied Mortgages | B93: 0 | C93: 0 | D93: 0 | E93: 0 | F93: 0 | G93: 0 | H93: 0 | I93: 0 | J93: 0 | K93: 0 | L93: 0 | M93: 0 | N93: 0 | O93: 0
A94: % of Investment Home Loans - Professional Landlords | B94: 1 | C94: 1 | D94: 1 | E94: 1 | F94: 1 | G94: 1 | H94: 1 | I94: 1 | J94: 1 | K94: 1 | L94: 1 | M94: 1 | N94: 1 | O94: 1
A95: % of Investment Home Loans - Emerging Professional Landlords | B95: 0 | C95: 0 | D95: 0 | E95: 0 | F95: 0 | G95: 0 | H95: 0 | I95: 0 | J95: 0 | K95: 0 | L95: 0 | M95: 0 | N95: 0 | O95: 0
A96: Weighted Average Interest Coverage Ratio (calculated at the origination date) | B96: 1.587160687 | C96: 1.587134575 | D96: 1.577865106 | E96: 1.577828228 | F96: 1.577790894 | G96: 1.577753099 | H96: 1.579764611 | I96: 1.588717099 | J96: 1.589139946 | K96: 1.590280453 | L96: 1.589804111 | M96: 1.589690809 | N96: 1.589678964 | O96: 1.589871147
A97: Number of Properties in Possession | B97: 0 | C97: 0 | D97: 0 | E97: 0 | F97: 0 | G97: 0 | H97: 0 | I97: 0 | J97: 0 | K97: 0 | L97: 0 | M97: 0 | N97: 0 | O97: 0
A98: Appointment of a Receiver of Rent | B98: 0 | C98: 0 | D98: 0 | E98: 0 | F98: 0 | G98: 0 | H98: 0 | I98: 0 | J98: 0 | K98: 0 | L98: 0 | M98: 0 | N98: 0 | O98: 0
A99: PML Quarterly Losses | B99: 0 | C99: 0 | D99: 0 | E99: 0 | F99: 0 | G99: 0 | H99: 0 | I99: 0 | J99: 0 | K99: 0 | L99: 0 | M99: 0 | N99: 0 | O99: 0
A100: Arrears excluding Receiver of Rent and Possession Cases
A101: Performing Loans | B101: 1 | C101: 1 | D101: 1 | E101: 1 | F101: 1 | G101: 1 | H101: 0.9774288236 | I101: 1 | J101: 1 | K101: 1 | L101: 1 | M101: 1 | N101: 1 | O101: 1
A102: >1 to 2 months arrears | B102: 0 | C102: 0 | D102: 0 | E102: 0 | F102: 0 | G102: 0 | H102: 0.02257117637 | I102: 0 | J102: 0 | K102: 0 | L102: 0 | M102: 0 | N102: 0 | O102: 0
A103: >2 to 3 months arrears | B103: 0 | C103: 0 | D103: 0 | E103: 0 | F103: 0 | G103: 0 | H103: 0 | I103: 0 | J103: 0 | K103: 0 | L103: 0 | M103: 0 | N103: 0 | O103: 0
A104: >3 months arrears | B104: 0 | C104: 0 | D104: 0 | E104: 0 | F104: 0 | G104: 0 | H104: 0 | I104: 0 | J104: 0 | K104: 0 | L104: 0 | M104: 0 | N104: 0 | O104: 0
A105: Total | B105: =SUM(B101:B104) -> 1 | C105: 1 | D105: 1 | E105: 1 | F105: 1 | G105: 1 | H105: 1 | I105: 1 | J105: 1 | K105: 1 | L105: 1 | M105: 1 | N105: 1 | O105: 1
A107: Underlying Assets - Paragon Mortgages 2010 Originated Assets (Emerging Professional) | B107: =+B76 -> 2020-11-30 | C107: 2021-02-26 | D107: =+D76 -> 2021-05-28 | E107: 2021-08-31 | F107: =+F76 -> 2021-11-30 | G107: 2022-02-28 | H107: =+H76 -> 2022-05-31 | I107: 2022-08-31 | J107: =+J76 -> 2022-11-30 | K107: 2023-02-28 | L107: =+L76 -> 2023-05-31 | M107: 2023-08-31 | N107: =+N76 -> 2023-11-30 | O107: 2024-02-29
A108: Weighted Average LTV | B108: 0.6860871158 | C108: 0.6839936762 | D108: 0.6880562702 | E108: 0.6876074341 | F108: 0.6845880738 | G108: 0.6841678439 | H108: 0.6866110763 | I108: 0.6852124744 | J108: 0.6810019347 | K108: 0.6843212566 | L108: 0.6717750801 | M108: 0.6723852004 | N108: 0.6637225908 | O108: 0.6704297781
A109: Weighted Average Nationwide Indexed LTV | B109: 0.5853385821 | C109: 0.572201081 | D109: 0.5714071625 | E109: 0.5440223124 | F109: 0.5333482084 | G109: 0.5207678388 | H109: 0.502052716 | I109: 0.4815960885 | J109: 0.4770641902 | K109: 0.4899759744 | L109: 0.4957645309 | M109: 0.4902672328 | N109: 0.4891889374 | O109: 0.4987739649
A110: % of Fixed Rate Mortgages (reverting to Term SONIA plus a variable margin) - reverting to Libor linked prior to 1st July 2021 | B110: 0 | C110: 0 | D110: 0 | E110: 0 | F110: 0 | G110: 0 | H110: 0 | I110: 0 | J110: 0 | K110: 0 | L110: 0 | M110: 0 | N110: 0 | O110: 0
A111: % of Fixed Rate Mortgages (reverting to SVR) | B111: 1 | C111: 1 | D111: 1 | E111: 1 | F111: 1 | G111: 0.9640486366 | H111: 0.8701897623 | I111: 0.866270915 | J111: 0.9323872954 | K111: 0.9524174666 | L111: 0.9455348605 | M111: 0.9455110886 | N111: 0.9391626767 | O111: 0.9381421276
A112: % of Term SONIA Linked Mortgages (reverting to Term SONIA plus a variable margin) - Libor linked prior to 1st July 2021 | B112: 0 | C112: 0 | D112: 0 | E112: 0 | F112: 0 | G112: 0 | H112: 0 | I112: 0 | J112: 0 | K112: 0 | L112: 0 | M112: 0 | N112: 0 | O112: 0
A113: % of Term SONIA Linked Mortgages plus a Variable Margin - Libor linked prior to 1st July 2021 | B113: 0 | C113: 0 | D113: 0 | E113: 0 | F113: 0 | G113: 0 | H113: 0 | I113: 0 | J113: 0 | K113: 0 | L113: 0 | M113: 0 | N113: 0 | O113: 0
A114: % of Non Reversionary Term SONIA Linked Mortgages - Libor linked prior to 1st July 2021 | B114: 0 | C114: 0 | D114: 0 | E114: 0 | F114: 0 | G114: 0 | H114: 0 | I114: 0 | J114: 0 | K114: 0 | L114: 0 | M114: 0 | N114: 0 | O114: 0
A115: % of SVR Mortgages | B115: 0 | C115: 0 | D115: 0 | E115: 0 | F115: 0 | G115: 0.0359513634 | H115: 0.1298102377 | I115: 0.133729085 | J115: 0.0676127046 | K115: 0.04758253339 | L115: 0.05446513953 | M115: 0.05448891141 | N115: 0.06083732326 | O115: 0.06185787243
A116: Weighted Average Loan Size | B116: 153012.518 | C116: 153732.3793 | D116: 151955.0111 | E116: 151822.7539 | F116: 152418.0707 | G116: 152283.9274 | H116: 142462.1971 | I116: 140709.6637 | J116: 142587.2423 | K116: 142621.28 | L116: 137058.494 | M116: 136998.6995 | N116: 129160.8437 | O116: 134087.1278
A117: Weighted Average Interest Rate | B117: 0.03407155144 | C117: 0.03407233959 | D117: 0.03395699 | E117: 0.03395554169 | F117: 0.03412903677 | G117: 0.03516767249 | H117: 0.03797065218 | I117: 0.03826765321 | J117: 0.03577663255 | K117: 0.03610684251 | L117: 0.03667957869 | M117: 0.03694880454 | N117: 0.03743950063 | O117: 0.03741888426
A118: Weighted Average Maturity Date (years) | B118: 16.47647677 | C118: 16.58328088 | D118: 16.45851549 | E118: 16.20862012 | F118: 15.86918522 | G118: 15.61931631 | H118: 14.98516607 | I118: 14.74692613 | J118: 14.28085619 | K118: 14.03259387 | L118: 13.35619508 | M118: 13.10543832 | N118: 13.0118342 | O118: 12.77071217
A119: Weighted Average Seasoning (months) | B119: 67.29757482 | C119: 70.13535066 | D119: 73.0014311 | E119: 76.02361086 | F119: 79.12038557 | G119: 82.07680913 | H119: 84.61170202 | I119: 87.62660613 | J119: 90.46382481 | K119: 93.41842633 | L119: 96.03313136 | M119: 99.05639324 | N119: 101.9593337 | O119: 104.9286399
A120: % of Interest Only Mortgages (optional switching to repayment) | B120: 0.9299116473 | C120: 0.9286256973 | D120: 0.9260407153 | E120: 0.9268131889 | F120: 0.9252712795 | G120: 0.9260863292 | H120: 0.931499983 | I120: 0.9431017787 | J120: 0.9664787331 | K120: 0.9662480751 | L120: 0.96179753 | M120: 0.9622173165 | N120: 0.9583079976 | O120: 0.9743836626
A121: % of Repayment Mortgages | B121: 0.07008835273 | C121: 0.07137430272 | D121: 0.07395928472 | E121: 0.07318681111 | F121: 0.0747287205 | G121: 0.07391367077 | H121: 0.06850001696 | I121: 0.05689822127 | J121: 0.03352126687 | K121: 0.03375192487 | L121: 0.03820246996 | M121: 0.03778268348 | N121: 0.04169200244 | O121: 0.02561633744
A122: % of Mortgages in London | B122: 0.2049583812 | C122: 0.2110330873 | D122: 0.2211265251 | E122: 0.2213191548 | F122: 0.2286197128 | G122: 0.2288210985 | H122: 0.1769493979 | I122: 0.1791532957 | J122: 0.1928664197 | K122: 0.1928203905 | L122: 0.2207110199 | M122: 0.2208073515 | N122: 0.2465332464 | O122: 0.2506688541
A123: % of Mortgages in the South East | B123: 0.3488913153 | C123: 0.3592320107 | D123: 0.3294478671 | E123: 0.3297348585 | F123: 0.3406116779 | G123: 0.3409117147 | H123: 0.4018654153 | I123: 0.4068706333 | J123: 0.4384853977 | K123: 0.4383807496 | L123: 0.4028400166 | M123: 0.4030158403 | N123: 0.3339548934 | O123: 0.3395570036
A124: % of Owner Occupied Mortgages | B124: 0 | C124: 0 | D124: 0 | E124: 0 | F124: 0 | G124: 0 | H124: 0 | I124: 0 | J124: 0 | K124: 0 | L124: 0 | M124: 0 | N124: 0 | O124: 0
A125: % of Investment Home Loans - Professional Landlords | B125: 0 | C125: 0 | D125: 0 | E125: 0 | F125: 0 | G125: 0 | H125: 0 | I125: 0 | J125: 0 | K125: 0 | L125: 0 | M125: 0 | N125: 0 | O125: 0
A126: % of Investment Home Loans - Emerging Professional Landlords | B126: 1 | C126: 1 | D126: 1 | E126: 1 | F126: 1 | G126: 1 | H126: 1 | I126: 1 | J126: 1 | K126: 1 | L126: 1 | M126: 1 | N126: 1 | O126: 1
A127: Weighted Average Interest Coverage Ratio (calculated at the origination date) | B127: 1.411894022 | C127: 1.415899557 | D127: 1.410765433 | E127: 1.410694258 | F127: 1.414096329 | G127: 1.414020468 | H127: 1.409907459 | I127: 1.410057865 | J127: 1.417173092 | K127: 1.417291245 | L127: 1.422217308 | M127: 1.422169495 | N127: 1.442089756 | O127: 1.442837858
A128: Number of Properties in Possession | B128: 0 | C128: 0 | D128: 0 | E128: 0 | F128: 0 | G128: 0 | H128: 0 | I128: 0 | J128: 0 | K128: 0 | L128: 0 | M128: 0 | N128: 0 | O128: 0
A129: Appointment of a Receiver of Rent | B129: 0 | C129: 0 | D129: 0 | E129: 0 | F129: 0 | G129: 0 | H129: 0 | I129: 0 | J129: 0 | K129: 0 | L129: 0 | M129: 0 | N129: 0 | O129: 0
A130: MTL Quarterly Losses | B130: 0 | C130: 0 | D130: 0 | E130: 0 | F130: 0 | G130: 0 | H130: 0 | I130: 0 | J130: 0 | K130: 0 | L130: 0 | M130: 0 | N130: 0 | O130: 0
A131: Arrears excluding Receiver of Rent and Possession Cases
A132: Performing Loans | B132: 1 | C132: 1 | D132: 1 | E132: 1 | F132: 1 | G132: 1 | H132: 1 | I132: 1 | J132: 1 | K132: 1 | L132: 1 | M132: 0.896090656 | N132: 1 | O132: 1
A133: >1 to 2 months arrears | B133: 0 | C133: 0 | D133: 0 | E133: 0 | F133: 0 | G133: 0 | H133: 0 | I133: 0 | J133: 0 | K133: 0 | L133: 0 | M133: 0 | N133: 0 | O133: 0
A134: >2 to 3 months arrears | B134: 0 | C134: 0 | D134: 0 | E134: 0 | F134: 0 | G134: 0 | H134: 0 | I134: 0 | J134: 0 | K134: 0 | L134: 0 | M134: 0.103909344 | N134: 0 | O134: 0
A135: >3 months arrears | B135: 0 | C135: 0 | D135: 0 | E135: 0 | F135: 0 | G135: 0 | H135: 0 | I135: 0 | J135: 0 | K135: 0 | L135: 0 | M135: 0 | N135: 0 | O135: 0
A136: Total | B136: =SUM(B132:B135) -> 1 | C136: 1 | D136: 1 | E136: 1 | F136: 1 | G136: 1 | H136: 1 | I136: 1 | J136: 1 | K136: 1 | L136: 1 | M136: 1 | N136: 1 | O136: 1
A138: Underlying Assets - Paragon Bank Originated Assets (Professional) | B138: =+B107 -> 2020-11-30 | C138: 2021-02-26 | D138: =+D107 -> 2021-05-28 | E138: 2021-08-31 | F138: =+F107 -> 2021-11-30 | G138: 2022-02-28 | H138: =+H107 -> 2022-05-31 | I138: 2022-08-31 | J138: =+J107 -> 2022-11-30 | K138: 2023-02-28 | L138: =+L107 -> 2023-05-31 | M138: 2023-08-31 | N138: =+N107 -> 2023-11-30 | O138: 2024-02-29
A139: Weighted Average LTV | B139: 0.7150158172 | C139: 0.7144505569 | D139: 0.7144624984 | E139: 0.7143724859 | F139: 0.7142248587 | G139: 0.7140802517 | H139: 0.7139708022 | I139: 0.7162503442 | J139: 0.717353398 | K139: 0.7172581666 | L139: 0.7166857056 | M139: 0.7164750344 | N139: 0.7160292784 | O139: 0.7156840028
A140: Weighted Average Nationwide Indexed LTV | B140: 0.6934056959 | C140: 0.6786750727 | D140: 0.6743690209 | E140: 0.6423143191 | F140: 0.6340155109 | G140: 0.6186342386 | H140: 0.6032394248 | I140: 0.5822600849 | J140: 0.579245989 | K140: 0.5935508528 | L140: 0.611157529 | M140: 0.6040005339 | N140: 0.6064371964 | O140: 0.6111946523
A141: % of Fixed Rate Mortgages (reverting to Term SONIA plus a variable margin) - reverting to Libor linked prior to 1st July 2021 | B141: 0 | C141: 0 | D141: 0 | E141: 0 | F141: 0 | G141: 0 | H141: 0 | I141: 0 | J141: 0 | K141: 0 | L141: 0 | M141: 0 | N141: 0 | O141: 0
A142: % of Fixed Rate Mortgages (reverting to SVR) | B142: 1 | C142: 1 | D142: 1 | E142: 1 | F142: 1 | G142: 1 | H142: 0.979872895 | I142: 0.9776596503 | J142: 0.9698457004 | K142: 0.9764007914 | L142: 0.9812218712 | M142: 0.9831952958 | N142: 0.9851228821 | O142: 0.9860355958
A143: % of Term SONIA Linked Mortgages (reverting to Term SONIA plus a variable margin) - Libor linked prior to 1st July 2021 | B143: 0 | C143: 0 | D143: 0 | E143: 0 | F143: 0 | G143: 0 | H143: 0 | I143: 0 | J143: 0 | K143: 0 | L143: 0 | M143: 0 | N143: 0 | O143: 0
A144: % of Term SONIA Linked Mortgages plus a Variable Margin - Libor linked prior to 1st July 2021 | B144: 0 | C144: 0 | D144: 0 | E144: 0 | F144: 0 | G144: 0 | H144: 0 | I144: 0 | J144: 0 | K144: 0 | L144: 0 | M144: 0 | N144: 0 | O144: 0
A145: % of Non Reversionary Term SONIA Linked Mortgages - Libor linked prior to 1st July 2021 | B145: 0 | C145: 0 | D145: 0 | E145: 0 | F145: 0 | G145: 0 | H145: 0 | I145: 0 | J145: 0 | K145: 0 | L145: 0 | M145: 0 | N145: 0 | O145: 0
A146: % of SVR Mortgages | B146: 0 | C146: 0 | D146: 0 | E146: 0 | F146: 0 | G146: 0 | H146: 0.02012710498 | I146: 0.02234034974 | J146: 0.03015429962 | K146: 0.02359920858 | L146: 0.01877812878 | M146: 0.01680470417 | N146: 0.01487711792 | O146: 0.01396440417
A147: Weighted Average Loan Size | B147: 188872.523 | C147: 189946.5262 | D147: 189841.4558 | E147: 189735.7904 | F147: 189716.9418 | G147: 189819.8891 | H147: 190540.3007 | I147: 190697.1921 | J147: 192187.4745 | K147: 192227.451 | L147: 192444.4052 | M147: 192365.6359 | N147: 192539.6053 | O147: 192484.5374
A148: Weighted Average Interest Rate | B148: 0.0345013095 | C148: 0.03449139594 | D148: 0.03449391674 | E148: 0.03449977233 | F148: 0.03450841683 | G148: 0.03451380296 | H148: 0.03518508594 | I148: 0.03575257691 | J148: 0.03676877356 | K148: 0.03672322713 | L148: 0.03662134692 | M148: 0.03665371889 | N148: 0.03661047018 | O148: 0.03656501428
A149: Weighted Average Maturity Date (years) | B149: 21.05049807 | C149: 20.87283118 | D149: 20.62496589 | E149: 20.37175779 | F149: 20.12448048 | G149: 19.87135514 | H149: 19.63711005 | I149: 19.32725713 | J149: 19.02723169 | K149: 18.76151472 | L149: 18.51725899 | M149: 18.27081782 | N149: 18.02276741 | O149: 17.77406942
A150: Weighted Average Seasoning (months) | B150: 5.70407897 | C150: 8.618731488 | D150: 11.64030909 | E150: 14.66986379 | F150: 17.66249881 | G150: 20.62373987 | H150: 23.60054042 | I150: 26.61257495 | J150: 29.66631098 | K150: 32.63974728 | L150: 35.66740924 | M150: 38.6859397 | N150: 41.67751869 | O150: 44.66546825
A151: % of Interest Only Mortgages (optional switching to repayment) | B151: 0.9313355798 | C151: 0.9314261899 | D151: 0.9317530384 | E151: 0.9319468663 | F151: 0.9320966882 | G151: 0.9348560435 | H151: 0.9342252856 | I151: 0.9337822351 | J151: 0.9346147705 | K151: 0.9356564184 | L151: 0.9358882739 | M151: 0.9364278095 | N151: 0.9371545651 | O151: 0.9377586761
A152: % of Repayment Mortgages | B152: 0.0686644202 | C152: 0.06857381006 | D152: 0.06824696157 | E152: 0.06805313367 | F152: 0.06790331182 | G152: 0.06514395654 | H152: 0.06577471436 | I152: 0.06621776491 | J152: 0.06538522949 | K152: 0.06434358165 | L152: 0.06411172614 | M152: 0.06357219051 | N152: 0.06284543492 | O152: 0.0622413239
A153: % of Mortgages in London | B153: 0.1974012138 | C153: 0.1998194024 | D153: 0.2001985391 | E153: 0.1998515655 | F153: 0.1989281896 | G153: 0.1999341965 | H153: 0.2031348212 | I153: 0.1990257859 | J153: 0.2024339688 | K153: 0.2026398282 | L153: 0.2027233604 | M153: 0.202909397 | N153: 0.2038145696 | O153: 0.2035396019
A154: % of Mortgages in the South East | B154: 0.3385398999 | C154: 0.3425930763 | D154: 0.342471211 | E154: 0.3428842311 | F154: 0.3436698385 | G154: 0.3449907433 | H154: 0.3461612894 | I154: 0.3505297613 | J154: 0.3473881609 | K154: 0.347575553 | L154: 0.3478448782 | M154: 0.347798108 | N154: 0.3490303295 | O154: 0.3488959061
A155: % of Owner Occupied Mortgages | B155: 0 | C155: 0 | D155: 0 | E155: 0 | F155: 0 | G155: 0 | H155: 0 | I155: 0 | J155: 0 | K155: 0 | L155: 0 | M155: 0 | N155: 0 | O155: 0
A156: % of Investment Home Loans - Professional Landlords | B156: 1 | C156: 1 | D156: 1 | E156: 1 | F156: 1 | G156: 1 | H156: 1 | I156: 1 | J156: 1 | K156: 1 | L156: 1 | M156: 1 | N156: 1 | O156: 1
A157: % of Investment Home Loans - Emerging Professional Landlords | B157: 0 | C157: 0 | D157: 0 | E157: 0 | F157: 0 | G157: 0 | H157: 0 | I157: 0 | J157: 0 | K157: 0 | L157: 0 | M157: 0 | N157: 0 | O157: 0
A158: Weighted Average Interest Coverage Ratio (calculated at the origination date) | B158: 1.932129913 | C158: 1.93641356 | D158: 1.936954208 | E158: 1.938257862 | F158: 1.938643103 | G158: 1.937314358 | H158: 1.935338885 | I158: 1.937749738 | J158: 1.946215626 | K158: 1.948760453 | L158: 1.948492137 | M158: 1.947390863 | N158: 1.948109855 | O158: 1.946987579
A159: Number of Properties in Possession | B159: 0 | C159: 0 | D159: 0 | E159: 0 | F159: 0 | G159: 0 | H159: 0 | I159: 0 | J159: 0 | K159: 0 | L159: 0 | M159: 0 | N159: 0 | O159: 0
A160: Appointment of a Receiver of Rent | B160: 0 | C160: 0 | D160: 0 | E160: 0 | F160: 0 | G160: 0 | H160: 0 | I160: 0 | J160: 0 | K160: 0 | L160: 0 | M160: 0 | N160: 0 | O160: 0
A161: Paragon Bank Quarterly Losses | B161: 0 | C161: 0 | D161: 0 | E161: 1 | F161: 0 | G161: 2 | H161: 6 | I161: 3 | J161: 0 | K161: 0 | L161: 0 | M161: 0 | N161: 0 | O161: 0
A162: Arrears excluding Receiver of Rent and Possession Cases
A163: Performing Loans | B163: 1 | C163: 1 | D163: 1 | E163: 1 | F163: 1 | G163: 1 | H163: 0.9990480311 | I163: 1 | J163: 1 | K163: 0.9991300568 | L163: 0.999846131 | M163: 0.9991633454 | N163: 0.9976208334 | O163: 0.9996838681
A164: >1 to 2 months arrears | B164: 0 | C164: 0 | D164: 0 | E164: 0 | F164: 0 | G164: 0 | H164: 0.0009519689467 | I164: 0 | J164: 0 | K164: 0.0002983551934 | L164: 0 | M164: 0.0008366546347 | N164: 0.001224002065 | O164: 0
A165: >2 to 3 months arrears | B165: 0 | C165: 0 | D165: 0 | E165: 0 | F165: 0 | G165: 0 | H165: 0 | I165: 0 | J165: 0 | K165: 0 | L165: 0.0001538690152 | M165: 0 | N165: 0.0003145247137 | O165: 0.0003161319085
A166: >3 months arrears | B166: 0 | C166: 0 | D166: 0 | E166: 0 | F166: 0 | G166: 0 | H166: 0 | I166: 0 | J166: 0 | K166: 0.0005715879849 | L166: 0 | M166: 0 | N166: 0.0008406398103 | O166: 0
A167: Total | B167: =SUM(B163:B166) -> 1 | C167: 1 | D167: 1 | E167: 1 | F167: 1 | G167: 1 | H167: 1 | I167: 1 | J167: 1 | K167: 1 | L167: 1 | M167: 1 | N167: 1 | O167: 1
A169: Underlying Assets - Paragon Bank Originated Assets (Emerging Professional) | B169: =+B138 -> 2020-11-30 | C169: 2021-02-26 | D169: =+D138 -> 2021-05-28 | E169: 2021-08-31 | F169: =+F138 -> 2021-11-30 | G169: 2022-02-28 | H169: =+H138 -> 2022-05-31 | I169: 2022-08-31 | J169: =+J138 -> 2022-11-30 | K169: 2023-02-28 | L169: =+L138 -> 2023-05-31 | M169: 2023-08-31 | N169: =+N138 -> 2023-11-30 | O169: 2024-02-29
A170: Weighted Average LTV | B170: 0.7159818174 | C170: 0.7161799416 | D170: 0.7157794608 | E170: 0.7153120925 | F170: 0.7152211423 | G170: 0.7152652217 | H170: 0.7160649234 | I170: 0.7154013685 | J170: 0.7173479868 | K170: 0.7178295438 | L170: 0.7181108015 | M170: 0.7180002223 | N170: 0.7175865422 | O170: 0.7170818887
A171: Weighted Average Nationwide Indexed LTV | B171: 0.6940867162 | C171: 0.680253632 | D171: 0.6757577413 | E171: 0.6430197447 | F171: 0.6338772436 | G171: 0.6177898854 | H171: 0.6031490216 | I171: 0.5800317926 | J171: 0.5774531853 | K171: 0.5926711396 | L171: 0.6110424397 | M171: 0.6038298935 | N171: 0.6067149664 | O171: 0.6117641748
A172: % of Fixed Rate Mortgages (reverting to Term SONIA plus a variable margin) - reverting to Libor linked prior to 1st July 2021 | B172: 0 | C172: 0 | D172: 0 | E172: 0 | F172: 0 | G172: 0 | H172: 0 | I172: 0 | J172: 0 | K172: 0 | L172: 0 | M172: 0 | N172: 0 | O172: 0
A173: % of Fixed Rate Mortgages (reverting to SVR) | B173: 1 | C173: 1 | D173: 1 | E173: 1 | F173: 1 | G173: 1 | H173: 0.9796967579 | I173: 0.972108388 | J173: 0.9646766766 | K173: 0.9727556201 | L173: 0.9828396289 | M173: 0.9830085869 | N173: 0.9838120705 | O173: 0.9837984426
A174: % of Term SONIA Linked Mortgages (reverting to Term SONIA plus a variable margin) - Libor linked prior to 1st July 2021 | B174: 0 | C174: 0 | D174: 0 | E174: 0 | F174: 0 | G174: 0 | H174: 0 | I174: 0 | J174: 0 | K174: 0 | L174: 0 | M174: 0 | N174: 0 | O174: 0
A175: % of Term SONIA Linked Mortgages plus a Variable Margin - Libor linked prior to 1st July 2021 | B175: 0 | C175: 0 | D175: 0 | E175: 0 | F175: 0 | G175: 0 | H175: 0 | I175: 0 | J175: 0 | K175: 0 | L175: 0 | M175: 0 | N175: 0 | O175: 0
A176: % of Non Reversionary Term SONIA Linked Mortgages - Libor linked prior to 1st July 2021 | B176: 0 | C176: 0 | D176: 0 | E176: 0 | F176: 0 | G176: 0 | H176: 0 | I176: 0 | J176: 0 | K176: 0 | L176: 0 | M176: 0 | N176: 0 | O176: 0
A177: % of SVR Mortgages | B177: 0 | C177: 0 | D177: 0 | E177: 0 | F177: 0 | G177: 0 | H177: 0.02030324209 | I177: 0.027891612 | J177: 0.03532332343 | K177: 0.02724437992 | L177: 0.01716037107 | M177: 0.01699141308 | N177: 0.01618792951 | O177: 0.01620155737
A178: Weighted Average Loan Size | B178: 189061.9514 | C178: 189023.232 | D178: 189432.9501 | E178: 188943.1024 | F178: 189287.0584 | G178: 188761.6523 | H178: 190739.0089 | I178: 193056.888 | J178: 194506.295 | K178: 193587.4655 | L178: 193058.4256 | M178: 192987.5178 | N178: 193003.6984 | O178: 192950.3758
A179: Weighted Average Interest Rate | B179: 0.03422076949 | C179: 0.03422012379 | D179: 0.03422030078 | E179: 0.0342215021 | F179: 0.03422747995 | G179: 0.0342170934 | H179: 0.03488295232 | I179: 0.03555374334 | J179: 0.03676513028 | K179: 0.03691360133 | L179: 0.03663066609 | M179: 0.03662523085 | N179: 0.03665460121 | O179: 0.03666606781
A180: Weighted Average Maturity Date (years) | B180: 22.26798722 | C180: 22.01885789 | D180: 21.76471175 | E180: 21.52292061 | F180: 21.28299081 | G180: 21.06039969 | H180: 20.81505719 | I180: 20.56544909 | J180: 20.31945394 | K180: 20.07138391 | L180: 19.80436172 | M180: 19.54530387 | N180: 19.28600712 | O180: 19.03989137
A181: Weighted Average Seasoning (months) | B181: 5.660234664 | C181: 8.616326377 | D181: 11.6431826 | E181: 14.65556703 | F181: 17.64359547 | G181: 20.60949905 | H181: 23.56751422 | I181: 26.59641781 | J181: 29.68456467 | K181: 32.65203866 | L181: 35.66943404 | M181: 38.69580407 | N181: 41.69399067 | O181: 44.68397199
A182: % of Interest Only Mortgages (optional switching to repayment) | B182: 0.9449413296 | C182: 0.9438698707 | D182: 0.9443544595 | E182: 0.9442311828 | F182: 0.9444684872 | G182: 0.9450455149 | H182: 0.9444025409 | I182: 0.9440420951 | J182: 0.9421484206 | K182: 0.9421487445 | L182: 0.9403915388 | M182: 0.9417636437 | N182: 0.9420165188 | O182: 0.9424663919
A183: % of Repayment Mortgages | B183: 0.05505867036 | C183: 0.05613012934 | D183: 0.05564554047 | E183: 0.05576881725 | F183: 0.05553151275 | G183: 0.05495448513 | H183: 0.05559745913 | I183: 0.05595790485 | J183: 0.05785157937 | K183: 0.05785125548 | L183: 0.05960846122 | M183: 0.05823635634 | N183: 0.05798348122 | O183: 0.05753360814
A184: % of Mortgages in London | B184: 0.1931280189 | C184: 0.1931171788 | D184: 0.1939838493 | E184: 0.1966314186 | F184: 0.1973920566 | G184: 0.1939767284 | H184: 0.2004545984 | I184: 0.2024842701 | J184: 0.1991673951 | K184: 0.1946329661 | L184: 0.1969582183 | M184: 0.1981389993 | N184: 0.1990083932 | O184: 0.1992356152
A185: % of Mortgages in the South East | B185: 0.3830732939 | C185: 0.3830699028 | D185: 0.3838188459 | E185: 0.3811637799 | F185: 0.3806697097 | G185: 0.3807216571 | H185: 0.3785762186 | I185: 0.3815336176 | J185: 0.3877389791 | K185: 0.3925773614 | L185: 0.3901273145 | M185: 0.3889919951 | N185: 0.3900698874 | O185: 0.3904717355
A186: % of Owner Occupied Mortgages | B186: 0 | C186: 0 | D186: 0 | E186: 0 | F186: 0 | G186: 0 | H186: 0 | I186: 0 | J186: 0 | K186: 0 | L186: 0 | M186: 0 | N186: 0 | O186: 0
A187: % of Investment Home Loans - Professional Landlords | B187: 0 | C187: 0 | D187: 0 | E187: 0 | F187: 0 | G187: 0 | H187: 0 | I187: 0 | J187: 0 | K187: 0 | L187: 0 | M187: 0 | N187: 0 | O187: 0
A188: % of Investment Home Loans - Emerging Professional Landlords | B188: 1 | C188: 1 | D188: 1 | E188: 1 | F188: 1 | G188: 1 | H188: 1 | I188: 1 | J188: 1 | K188: 1 | L188: 1 | M188: 1 | N188: 1 | O188: 1
A189: Weighted Average Interest Coverage Ratio (calculated at the origination date) | B189: 1.729711761 | C189: 1.729617592 | D189: 1.728970445 | E189: 1.728003146 | F189: 1.72783933 | G189: 1.730305406 | H189: 1.735013148 | I189: 1.740462912 | J189: 1.743676779 | K189: 1.74766298 | L189: 1.74977887 | M189: 1.751354291 | N189: 1.748642785 | O189: 1.748496501
A190: Number of Properties in Possession | B190: 0 | C190: 0 | D190: 0 | E190: 0 | F190: 0 | G190: 0 | H190: 0 | I190: 0 | J190: 0 | K190: 0 | L190: 0 | M190: 0 | N190: 0 | O190: 0
A191: Appointment of a Receiver of Rent | B191: 0 | C191: 0 | D191: 0 | E191: 0 | F191: 0 | G191: 0 | H191: 0 | I191: 0 | J191: 0 | K191: 0 | L191: 0 | M191: 1 | N191: 1 | O191: 0
A192: Paragon Bank Quarterly Losses | B192: 1 | C192: 0 | D192: 0 | E192: 0 | F192: 0 | G192: 0 | H192: 0 | I192: 0 | J192: 1 | K192: 0 | L192: 0 | M192: 0 | N192: 0 | O192: 0
A193: Arrears excluding Receiver of Rent and Possession Cases
A194: Performing Loans | B194: 1 | C194: 1 | D194: 1 | E194: 1 | F194: 1 | G194: 1 | H194: 1 | I194: 1 | J194: 1 | K194: 0.9988076058 | L194: 0.9980205853 | M194: 0.997828419 | N194: 0.9968148205 | O194: 0.9942580519
A195: >1 to 2 months arrears | B195: 0 | C195: 0 | D195: 0 | E195: 0 | F195: 0 | G195: 0 | H195: 0 | I195: 0 | J195: 0 | K195: 0.001192394183 | L195: 0.001979414709 | M195: 0.0006982073353 | N195: 0.003185179531 | O195: 0.001260120864
A196: >2 to 3 months arrears | B196: 0 | C196: 0 | D196: 0 | E196: 0 | F196: 0 | G196: 0 | H196: 0 | I196: 0 | J196: 0 | K196: 0 | L196: 0 | M196: 0.001473373705 | N196: 0 | O196: 0.002477471086
A197: >3 months arrears | B197: 0 | C197: 0 | D197: 0 | E197: 0 | F197: 0 | G197: 0 | H197: 0 | I197: 0 | J197: 0 | K197: 0 | L197: 0 | M197: 0 | N197: 0 | O197: 0.002004356167
A198: Total | B198: =SUM(B194:B197) -> 1 | C198: 1 | D198: 1 | E198: 1 | F198: 1 | G198: 1 | H198: 1 | I198: 1 | J198: 1 | K198: 1 | L198: 1 | M198: 1 | N198: 1 | O198: 1

Sheet Graphs
K2: PARAGON MORTGAGES (NO.28) PLC
